[Event "GrandPrix_29.05"]
[Site "Chess.com"]
[Date "2020.05.29"]
[Round "2"]
[White "Meizon19"]
[Black "sahidi"]
[Result "1-0"]
[WhiteElo "2237"]
[BlackElo "1992"]
[TimeControl "600+2"]
[EndTime "9:53:00 PDT"]
[Termination "Meizon19 won by checkmate"]

1. e4 {[%clk 0:10:01.9]} 1... e5 {[%clk 0:09:47.2]} 2. Nf3 {[%clk 0:10:02.6]}
2... Nc6 {[%clk 0:09:39.7]} 3. Nc3 {[%clk 0:10:01]} 3... Nf6 {[%clk 0:09:21.2]}
4. Be2 {[%clk 0:10:01.3]} 4... Bc5 {[%clk 0:08:54.8]} 5. Nxe5 {[%clk 0:10:00.9]}
5... Nxe5 {[%clk 0:08:41.9]} 6. d4 {[%clk 0:10:01.3]} 6... Bd6 {[%clk 0:08:37]}
7. dxe5 {[%clk 0:10:01.8]} 7... Bxe5 {[%clk 0:08:35.9]} 8. Nb5 {[%clk
0:10:02.6]} 8... O-O {[%clk 0:08:11.3]} 9. f4 {[%clk 0:09:07.2]} 9... Nxe4
{[%clk 0:08:09.7]} 10. Qd5 {[%clk 0:09:07.3]} 10... Qh4+ {[%clk 0:08:07.3]} 11.
g3 {[%clk 0:09:04.4]} 11... Nxg3 {[%clk 0:08:07.9]} 12. hxg3 {[%clk 0:09:05.3]}
12... Qxg3+ {[%clk 0:08:09.8]} 13. Kd1 {[%clk 0:09:05.9]} 13... Bf6 {[%clk
0:07:55.3]} 14. Qd3 {[%clk 0:09:00.4]} 14... Qxd3+ {[%clk 0:07:54.2]} 15. Bxd3
{[%clk 0:09:01.4]} 15... h6 {[%clk 0:07:48.3]} 16. Nxc7 {[%clk 0:09:01.3]} 16...
Rb8 {[%clk 0:07:47.8]} 17. Nd5 {[%clk 0:08:59.7]} 17... Bd8 {[%clk 0:07:44.2]}
18. Be3 {[%clk 0:08:36]} 18... b6 {[%clk 0:07:43.5]} 19. Kd2 {[%clk 0:08:26.6]}
19... Bb7 {[%clk 0:07:41.7]} 20. c4 {[%clk 0:08:27.1]} 20... Re8 {[%clk
0:07:39.4]} 21. Bd4 {[%clk 0:08:25.5]} 21... Kf8 {[%clk 0:07:26.7]} 22. Rag1
{[%clk 0:08:05.6]} 22... f6 {[%clk 0:07:25.7]} 23. Bf5 {[%clk 0:07:54.9]} 23...
Bc6 {[%clk 0:07:20.4]} 24. Rh3 {[%clk 0:07:42.6]} 24... b5 {[%clk 0:06:58]} 25.
Bc5+ {[%clk 0:07:31.8]} 25... Kg8 {[%clk 0:06:51.4]} 26. Rxh6 {[%clk 0:06:15.6]}
26... bxc4 {[%clk 0:06:30.2]} 27. Rhg6 {[%clk 0:05:41.2]} 27... Ba5+ {[%clk
0:06:02.8]} 28. Kc1 {[%clk 0:05:30.9]} 28... Re1+ {[%clk 0:05:49.3]} 29. Rxe1
{[%clk 0:05:31]} 29... Bxe1 {[%clk 0:05:51.2]} 30. Nxf6+ {[%clk 0:05:21.1]}
30... Kf7 {[%clk 0:05:47.8]} 31. Ng4 {[%clk 0:05:01.5]} 31... Rb5 {[%clk
0:05:03.6]} 32. Ne5+ {[%clk 0:04:59]} 32... Kg8 {[%clk 0:04:30.2]} 33. Bd4
{[%clk 0:04:54.4]} 33... Rd5 {[%clk 0:04:18.9]} 34. Nxc6 {[%clk 0:04:52]} 34...
Kf7 {[%clk 0:02:58.9]} 35. Ne5+ {[%clk 0:03:53]} 35... Ke8 {[%clk 0:02:37.2]}
36. Bxd7+ {[%clk 0:03:45.2]} 36... Kf8 {[%clk 0:02:02.8]} 37. Re6 {[%clk
0:03:39.6]} 37... g5 {[%clk 0:01:32.4]} 38. Ng6+ {[%clk 0:03:37.4]} 38... Kf7
{[%clk 0:01:32.4]} 39. Rf6+ {[%clk 0:03:36.7]} 39... Kg8 {[%clk 0:01:33.3]} 40.
Ne7+ {[%clk 0:03:36.6]} 40... Kg7 {[%clk 0:01:32.5]} 41. Nxd5 {[%clk 0:03:37.7]}
41... g4 {[%clk 0:01:26.3]} 42. Bxg4 {[%clk 0:03:37.4]} 42... c3 {[%clk
0:01:24.4]} 43. Re6+ {[%clk 0:03:37.6]} 43... Kh7 {[%clk 0:01:21.5]} 44. Bf5+
{[%clk 0:03:37.6]} 44... Kg8 {[%clk 0:01:19.9]} 45. Re8+ {[%clk 0:03:33.4]}
45... Kf7 {[%clk 0:01:17.2]} 46. Re7+ {[%clk 0:03:34.3]} 46... Kf8 {[%clk
0:01:15.8]} 47. Bg7+ {[%clk 0:03:34.9]} 47... Kg8 {[%clk 0:01:17.1]} 48. Nf6#
{[%clk 0:03:35.4]} 1-0

[Event "GrandPrix_29.05"]
[Site "Chess.com"]
[Date "2020.05.29"]
[Round "2"]
[White "Igrok3069"]
[Black "payto1"]
[Result "1-0"]
[WhiteElo "2499"]
[BlackElo "2176"]
[TimeControl "600+2"]
[EndTime "9:53:07 PDT"]
[Termination "Igrok3069 won by resignation"]

1. d4 {[%clk 0:10:01.9]} 1... Nf6 {[%clk 0:09:58.6]} 2. Nf3 {[%clk 0:10:01.7]}
2... b6 {[%clk 0:09:59.3]} 3. c4 {[%clk 0:10:00.7]} 3... Bb7 {[%clk 0:09:59.7]}
4. Nc3 {[%clk 0:10:01.7]} 4... e6 {[%clk 0:09:57.8]} 5. a3 {[%clk 0:10:00.7]}
5... d5 {[%clk 0:09:57.9]} 6. Qc2 {[%clk 0:09:59.9]} 6... Be7 {[%clk 0:09:50.2]}
7. cxd5 {[%clk 0:09:59.8]} 7... Nxd5 {[%clk 0:09:49.8]} 8. Bd2 {[%clk
0:10:00.3]} 8... O-O {[%clk 0:09:46.1]} 9. e4 {[%clk 0:10:00.6]} 9... Nxc3
{[%clk 0:09:42.9]} 10. Bxc3 {[%clk 0:10:01.1]} 10... Nd7 {[%clk 0:09:24.2]} 11.
Rd1 {[%clk 0:10:00.1]} 11... Qc8 {[%clk 0:08:49.9]} 12. Bd3 {[%clk 0:09:54.7]}
12... Ba6 {[%clk 0:07:57.4]} 13. O-O {[%clk 0:09:49.5]} 13... c6 {[%clk
0:07:27.5]} 14. Bxa6 {[%clk 0:07:12.8]} 14... Qxa6 {[%clk 0:07:29.4]} 15. d5
{[%clk 0:07:14.4]} 15... cxd5 {[%clk 0:07:09.6]} 16. exd5 {[%clk 0:07:16.3]}
16... exd5 {[%clk 0:07:10.7]} 17. Rxd5 {[%clk 0:07:10.7]} 17... Rad8 {[%clk
0:06:49.7]} 18. Re1 {[%clk 0:06:55.9]} 18... Bf6 {[%clk 0:06:37.3]} 19. Ng5
{[%clk 0:04:18.4]} 19... Bxg5 {[%clk 0:06:15.6]} 20. Rxg5 {[%clk 0:04:14.9]}
20... g6 {[%clk 0:06:10.4]} 21. Rd5 {[%clk 0:02:32.4]} 21... Nc5 {[%clk
0:05:55.6]} 22. Rxd8 {[%clk 0:02:32.6]} 22... Rxd8 {[%clk 0:05:57.5]} 23. Qd2
{[%clk 0:02:04.8]} 23... Qd3 {[%clk 0:04:42.2]} 24. Qh6 {[%clk 0:01:40.8]} 24...
Ne6 {[%clk 0:04:34.4]} 25. h4 {[%clk 0:01:00.5]} 25... Nd4 {[%clk 0:04:21.6]}
26. Qg5 {[%clk 0:00:58]} 26... Kg7 {[%clk 0:02:17.9]} 27. Qxd8 {[%clk
0:00:51.3]} 1-0

[Event "GrandPrix_29.05"]
[Site "Chess.com"]
[Date "2020.05.29"]
[Round "2"]
[White "crazyboy26"]
[Black "imdvb6307"]
[Result "1-0"]
[WhiteElo "2201"]
[BlackElo "1705"]
[TimeControl "600+2"]
[EndTime "9:53:11 PDT"]
[Termination "crazyboy26 won by resignation"]

1. e4 {[%clk 0:10:01.9]} 1... Nc6 {[%clk 0:09:57.1]} 2. Bb5 {[%clk 0:09:55.9]}
2... Nf6 {[%clk 0:09:38.2]} 3. d3 {[%clk 0:09:53.1]} 3... d5 {[%clk 0:08:56.6]}
4. e5 {[%clk 0:09:41.5]} 4... Nd7 {[%clk 0:08:56.1]} 5. Nf3 {[%clk 0:09:27.2]}
5... e6 {[%clk 0:08:39.6]} 6. O-O {[%clk 0:09:18.4]} 6... a6 {[%clk 0:08:33.1]}
7. Bxc6 {[%clk 0:09:18.6]} 7... bxc6 {[%clk 0:08:33]} 8. Re1 {[%clk 0:09:06.5]}
8... c5 {[%clk 0:08:24.6]} 9. c4 {[%clk 0:08:54.1]} 9... Be7 {[%clk 0:05:22.6]}
10. Nc3 {[%clk 0:08:47]} 10... d4 {[%clk 0:04:09.7]} 11. Ne4 {[%clk 0:08:35.7]}
11... Bb7 {[%clk 0:04:03.8]} 12. Bf4 {[%clk 0:08:22]} 12... a5 {[%clk
0:03:50.5]} 13. Nfd2 {[%clk 0:07:48.8]} 13... O-O {[%clk 0:03:40.5]} 14. Qg4
{[%clk 0:07:44.9]} 14... Kh8 {[%clk 0:03:39.8]} 15. Qg3 {[%clk 0:06:59.9]} 15...
Rg8 {[%clk 0:03:15.4]} 16. Qh3 {[%clk 0:06:39.7]} 16... g5 {[%clk 0:02:45.5]}
17. Bg3 {[%clk 0:06:39.6]} 17... Rg6 {[%clk 0:02:44.8]} 18. Qg4 {[%clk
0:06:09.5]} 18... Kg7 {[%clk 0:02:18.2]} 19. Nf3 {[%clk 0:05:48.9]} 19... Qh8
{[%clk 0:02:11.1]} 20. Nf6 {[%clk 0:05:35]} 20... Nxf6 {[%clk 0:01:36.6]} 21.
exf6+ {[%clk 0:05:35.2]} 21... Bxf6 {[%clk 0:01:37.2]} 22. Ne5 {[%clk 0:05:18]}
22... Bxe5 {[%clk 0:00:30.6]} 23. Bxe5+ {[%clk 0:05:17.9]} 23... f6 {[%clk
0:00:31.2]} 24. Bxc7 {[%clk 0:04:35.3]} 24... f5 {[%clk 0:00:29.4]} 25. Qe2
{[%clk 0:03:49.6]} 25... Qe8 {[%clk 0:00:26.3]} 26. Qe5+ {[%clk 0:03:30.6]}
26... Kf7 {[%clk 0:00:20.3]} 27. Qxc5 {[%clk 0:03:30.4]} 27... Rc8 {[%clk
0:00:20.4]} 28. Qb6 {[%clk 0:03:20]} 28... e5 {[%clk 0:00:19.3]} 29. Qxb7 {[%clk
0:03:20.3]} 29... Qd7 {[%clk 0:00:12.1]} 30. Rxe5 {[%clk 0:03:05.3]} 30... Rc6
{[%clk 0:00:10.5]} 1-0

[Event "GrandPrix_29.05"]
[Site "Chess.com"]
[Date "2020.05.29"]
[Round "2"]
[White "OparinGrigoriy"]
[Black "VMikhalevski"]
[Result "1-0"]
[WhiteElo "2387"]
[BlackElo "2316"]
[TimeControl "600+2"]
[EndTime "9:53:13 PDT"]
[Termination "OparinGrigoriy won on time"]

1. Nf3 {[%clk 0:10:01.9]} 1... Nf6 {[%clk 0:09:56.6]} 2. g3 {[%clk 0:10:02.8]}
2... d5 {[%clk 0:09:52.6]} 3. Bg2 {[%clk 0:10:03.8]} 3... c6 {[%clk 0:09:52.6]}
4. O-O {[%clk 0:10:05]} 4... Bg4 {[%clk 0:09:50.9]} 5. c4 {[%clk 0:10:05.8]}
5... e6 {[%clk 0:09:49.3]} 6. cxd5 {[%clk 0:10:06.2]} 6... exd5 {[%clk
0:09:49.5]} 7. d3 {[%clk 0:10:07.1]} 7... Nbd7 {[%clk 0:09:45.4]} 8. Nc3 {[%clk
0:10:08.3]} 8... Bc5 {[%clk 0:09:43.5]} 9. Qb3 {[%clk 0:10:09.2]} 9... Bb6
{[%clk 0:09:22.1]} 10. Na4 {[%clk 0:10:09.7]} 10... O-O {[%clk 0:09:17.2]} 11.
Nxb6 {[%clk 0:10:10.3]} 11... axb6 {[%clk 0:09:12.9]} 12. Qc2 {[%clk 0:10:11.1]}
12... Re8 {[%clk 0:09:08.7]} 13. b3 {[%clk 0:10:12]} 13... Qe7 {[%clk
0:08:54.4]} 14. Re1 {[%clk 0:10:12.8]} 14... Qc5 {[%clk 0:08:42.6]} 15. Qb1
{[%clk 0:09:57.7]} 15... b5 {[%clk 0:06:44.9]} 16. Bb2 {[%clk 0:09:54.1]} 16...
b4 {[%clk 0:05:45.8]} 17. Nd4 {[%clk 0:09:49.4]} 17... Ne5 {[%clk 0:05:24.6]}
18. h3 {[%clk 0:09:46.3]} 18... Bd7 {[%clk 0:05:20.4]} 19. e4 {[%clk 0:09:30]}
19... Ng6 {[%clk 0:04:04.3]} 20. f4 {[%clk 0:09:02.6]} 20... Nh5 {[%clk
0:03:23.8]} 21. Kh2 {[%clk 0:08:50]} 21... Nhxf4 {[%clk 0:03:11.2]} 22. gxf4
{[%clk 0:08:51.9]} 22... Nxf4 {[%clk 0:03:12.4]} 23. e5 {[%clk 0:08:06.7]} 23...
Qe7 {[%clk 0:02:54.8]} 24. Qc2 {[%clk 0:07:26.1]} 24... Qh4 {[%clk 0:02:53.9]}
25. Nf3 {[%clk 0:07:24.3]} 25... Qh5 {[%clk 0:02:49.3]} 26. Ng1 {[%clk
0:07:07.2]} 26... Bf5 {[%clk 0:02:44.1]} 27. Qd2 {[%clk 0:06:29.1]} 27... Nxd3
{[%clk 0:02:30.4]} 28. Re3 {[%clk 0:06:21.4]} 28... Nxb2 {[%clk 0:01:47.5]} 29.
Qxb2 {[%clk 0:06:23.3]} 29... Qh4 {[%clk 0:01:31.5]} 30. Rf1 {[%clk 0:06:15]}
30... Bg6 {[%clk 0:01:17.5]} 31. Ne2 {[%clk 0:05:54.5]} 31... Qg5 {[%clk
0:01:01.1]} 32. Nf4 {[%clk 0:05:40.2]} 32... d4 {[%clk 0:01:00.4]} 33. Qxd4
{[%clk 0:05:07.2]} 33... Rxa2 {[%clk 0:01:00.4]} 34. Rff3 {[%clk 0:05:08.7]}
34... Rd8 {[%clk 0:00:50.7]} 35. Qxb4 {[%clk 0:05:03.5]} 35... Rc2 {[%clk
0:00:13.4]} 36. Rg3 {[%clk 0:04:44.1]} 36... Qh4 {[%clk 0:00:12.3]} 37. e6
{[%clk 0:04:01.8]} 37... fxe6 {[%clk 0:00:08.7]} 38. Rg4 {[%clk 0:03:55.6]}
38... Qf2 {[%clk 0:00:05.4]} 39. Qe7 {[%clk 0:03:51.8]} 39... Rf8 {[%clk
0:00:03]} 40. Nxe6 {[%clk 0:03:46.4]} 1-0

[Event "GrandPrix_29.05"]
[Site "Chess.com"]
[Date "2020.05.29"]
[Round "2"]
[White "Hakob-Hakobyan-Arm"]
[Black "ehrenfeld"]
[Result "0-1"]
[WhiteElo "2101"]
[BlackElo "2138"]
[TimeControl "600+2"]
[EndTime "9:53:19 PDT"]
[Termination "ehrenfeld won by resignation"]

1. Nf3 {[%clk 0:10:01.9]} 1... f5 {[%clk 0:09:59.4]} 2. d3 {[%clk 0:10:01.9]}
2... d6 {[%clk 0:09:58.4]} 3. e4 {[%clk 0:10:02.4]} 3... e5 {[%clk 0:09:59.1]}
4. Nc3 {[%clk 0:10:00.9]} 4... Nc6 {[%clk 0:09:59.1]} 5. d4 {[%clk 0:09:42.9]}
5... fxe4 {[%clk 0:09:48.5]} 6. Nxe4 {[%clk 0:09:43.1]} 6... d5 {[%clk
0:09:47.8]} 7. Nc3 {[%clk 0:08:58.1]} 7... e4 {[%clk 0:09:21]} 8. Ne5 {[%clk
0:08:58.7]} 8... Nxe5 {[%clk 0:08:46.3]} 9. dxe5 {[%clk 0:09:00.6]} 9... Be6
{[%clk 0:08:25.5]} 10. f3 {[%clk 0:08:39.8]} 10... exf3 {[%clk 0:06:30.9]} 11.
Qxf3 {[%clk 0:08:41.7]} 11... Qd7 {[%clk 0:06:31.8]} 12. Bb5 {[%clk 0:07:49.8]}
12... c6 {[%clk 0:06:31.6]} 13. Bd3 {[%clk 0:07:38]} 13... Bc5 {[%clk
0:06:21.8]} 14. Bg5 {[%clk 0:07:03.8]} 14... Ne7 {[%clk 0:06:16.5]} 15. Qh5+
{[%clk 0:06:20.2]} 15... g6 {[%clk 0:05:23.1]} 16. Qh6 {[%clk 0:05:51.7]} 16...
O-O-O {[%clk 0:04:57.8]} 17. O-O-O {[%clk 0:05:46.7]} 17... Bd4 {[%clk 0:04:43]}
18. Bf6 {[%clk 0:05:23.7]} 18... Bxc3 {[%clk 0:04:30]} 19. Bxh8 {[%clk
0:05:04.5]} 19... Bxb2+ {[%clk 0:04:30.4]} 20. Kxb2 {[%clk 0:05:06.4]} 20...
Rxh8 {[%clk 0:04:31.6]} 21. Qg7 {[%clk 0:04:56.6]} 21... Rg8 {[%clk 0:03:46.4]}
22. Qf6 {[%clk 0:04:43.4]} 22... d4 {[%clk 0:03:38.4]} 23. Rhf1 {[%clk
0:04:24.3]} 23... Nd5 {[%clk 0:03:30.4]} 24. Qf3 {[%clk 0:03:33.2]} 24... Ne3
{[%clk 0:03:30.4]} 25. Rde1 {[%clk 0:03:34]} 25... Nxf1 {[%clk 0:03:30.6]} 26.
Rxf1 {[%clk 0:03:35.9]} 26... Qd5 {[%clk 0:03:22.5]} 27. Qxd5 {[%clk 0:03:30.2]}
27... Bxd5 {[%clk 0:03:23.5]} 28. Rf4 {[%clk 0:03:14.9]} 28... c5 {[%clk
0:03:23.3]} 29. Rh4 {[%clk 0:02:55.8]} 29... Rg7 {[%clk 0:03:23.8]} 30. Be4
{[%clk 0:02:23.7]} 30... Bxe4 {[%clk 0:03:21.3]} 31. Rxe4 {[%clk 0:02:25.6]}
31... Kd7 {[%clk 0:03:20.6]} 32. Kb3 {[%clk 0:02:26.8]} 32... Ke6 {[%clk
0:03:16.8]} 33. Kc4 {[%clk 0:02:24.5]} 33... b6 {[%clk 0:03:11.8]} 34. Kb5
{[%clk 0:01:54.7]} 34... Kd5 {[%clk 0:03:04.6]} 35. Re2 {[%clk 0:01:54.5]} 35...
Re7 {[%clk 0:03:05.4]} 36. Rf2 {[%clk 0:01:49.6]} 36... Rxe5 {[%clk 0:02:55.2]}
37. Rf7 {[%clk 0:01:50.5]} 37... Re2 {[%clk 0:02:53.1]} 38. Rxh7 {[%clk
0:01:51.5]} 38... Rxg2 {[%clk 0:02:48.1]} 39. Rxa7 {[%clk 0:01:52.7]} 39... Rxc2
{[%clk 0:02:47.1]} 40. Kxb6 {[%clk 0:01:53.9]} 40... Rb2+ {[%clk 0:02:42.3]} 41.
Kc7 {[%clk 0:01:52.6]} 41... d3 {[%clk 0:02:41.3]} 42. Ra6 {[%clk 0:01:53.9]}
42... c4 {[%clk 0:02:29.2]} 43. a4 {[%clk 0:01:54.9]} 43... c3 {[%clk
0:02:29.3]} 44. a5 {[%clk 0:01:55.3]} 44... c2 {[%clk 0:02:28.3]} 45. Rd6+
{[%clk 0:01:56.6]} 45... Ke4 {[%clk 0:02:27.8]} 46. Rc6 {[%clk 0:01:56.6]} 46...
d2 {[%clk 0:02:27.1]} 47. a6 {[%clk 0:01:57.3]} 47... c1=Q {[%clk 0:02:25.7]}
0-1

[Event "GrandPrix_29.05"]
[Site "Chess.com"]
[Date "2020.05.29"]
[Round "2"]
[White "tianachess"]
[Black "LorisinoC"]
[Result "1/2-1/2"]
[WhiteElo "2093"]
[BlackElo "2216"]
[TimeControl "600+2"]
[EndTime "9:53:21 PDT"]
[Termination "Game drawn by agreement"]

1. d4 {[%clk 0:10:00.7]} 1... d5 {[%clk 0:09:59.3]} 2. c4 {[%clk 0:10:00.9]}
2... e6 {[%clk 0:09:59.8]} 3. Nc3 {[%clk 0:10:00.8]} 3... c5 {[%clk 0:09:58.8]}
4. cxd5 {[%clk 0:10:00.1]} 4... cxd4 {[%clk 0:09:58.4]} 5. Qxd4 {[%clk
0:09:41.5]} 5... Nc6 {[%clk 0:09:56.3]} 6. Qd1 {[%clk 0:07:15.8]} 6... exd5
{[%clk 0:09:52.8]} 7. Qxd5 {[%clk 0:06:54.3]} 7... Bd7 {[%clk 0:09:53.3]} 8. Bg5
{[%clk 0:06:28.6]} 8... Nf6 {[%clk 0:09:33.9]} 9. Bxf6 {[%clk 0:05:58.8]} 9...
Qxf6 {[%clk 0:09:31.2]} 10. O-O-O {[%clk 0:05:23.3]} 10... O-O-O {[%clk
0:09:08.5]} 11. Nf3 {[%clk 0:04:38.5]} 11... Be6 {[%clk 0:08:49.3]} 12. Qg5
{[%clk 0:04:25.5]} 12... Be7 {[%clk 0:08:41.7]} 13. Rxd8+ {[%clk 0:04:04.6]}
13... Rxd8 {[%clk 0:08:26.1]} 14. Qxf6 {[%clk 0:04:04.4]} 14... Bxf6 {[%clk
0:08:28]} 15. e3 {[%clk 0:03:27.3]} 15... Bxc3 {[%clk 0:08:13.4]} 16. bxc3
{[%clk 0:03:26.8]} 16... Bxa2 {[%clk 0:08:15.3]} 17. Bb5 {[%clk 0:03:25.3]}
17... Rd6 {[%clk 0:07:54]} 18. Rd1 {[%clk 0:03:21.6]} 18... Rxd1+ {[%clk
0:07:46.7]} 19. Kxd1 {[%clk 0:03:21.8]} 19... Bd5 {[%clk 0:07:48.6]} 20. Bd3
{[%clk 0:02:47.6]} 20... a5 {[%clk 0:07:29.5]} 21. e4 {[%clk 0:02:40.5]} 21...
Be6 {[%clk 0:07:13.8]} 22. Nd4 {[%clk 0:02:20.4]} 22... Bd7 {[%clk 0:06:29.9]}
23. Nxc6 {[%clk 0:01:41.7]} 23... Bxc6 {[%clk 0:06:25.6]} 24. f4 {[%clk
0:01:35.6]} 24... b5 {[%clk 0:06:06.9]} 25. g3 {[%clk 0:01:35.2]} 25... Kc7
{[%clk 0:05:55.7]} 26. Kc2 {[%clk 0:01:13.7]} 26... Kb6 {[%clk 0:05:35.1]} 27.
Kb3 {[%clk 0:01:00.6]} 27... f6 {[%clk 0:05:31.4]} 28. Bb1 {[%clk 0:00:59]}
28... Kc5 {[%clk 0:05:15.7]} 29. Bd3 {[%clk 0:00:58]} 29... Be8 {[%clk
0:05:03.1]} 30. Ka3 {[%clk 0:00:56.9]} 30... b4+ {[%clk 0:04:51.1]} 31. cxb4+
{[%clk 0:00:57]} 31... axb4+ {[%clk 0:04:51]} 32. Kb3 {[%clk 0:00:56.8]} 32...
Bf7+ {[%clk 0:04:38.7]} 33. Kb2 {[%clk 0:00:43.4]} 33... Kd4 {[%clk 0:04:35.9]}
34. Bc2 {[%clk 0:00:40.4]} 34... Ke3 {[%clk 0:04:12.8]} 35. e5 {[%clk
0:00:39.5]} 35... fxe5 {[%clk 0:04:08.5]} 36. fxe5 {[%clk 0:00:39.8]} 36... Kd4
{[%clk 0:04:08.6]} 37. Bxh7 {[%clk 0:00:37.4]} 37... g6 {[%clk 0:04:04]} 38. e6
{[%clk 0:00:37.7]} 38... Bxe6 {[%clk 0:04:02.1]} 39. Bxg6 {[%clk 0:00:38.2]}
39... Ke3 {[%clk 0:03:58.4]} 40. h4 {[%clk 0:00:37.7]} 40... Kf3 {[%clk
0:03:33.7]} 41. h5 {[%clk 0:00:38.2]} 41... Bg8 {[%clk 0:03:22.1]} 42. h6 {[%clk
0:00:34.2]} 42... Kxg3 {[%clk 0:03:22.1]} 1/2-1/2

[Event "GrandPrix_29.05"]
[Site "Chess.com"]
[Date "2020.05.29"]
[Round "2"]
[White "Martin_Petrov2000"]
[Black "vpantev"]
[Result "0-1"]
[WhiteElo "2291"]
[BlackElo "2416"]
[TimeControl "600+2"]
[EndTime "9:53:22 PDT"]
[Termination "vpantev won by resignation"]

1. e4 {[%clk 0:10:01.9]} 1... c5 {[%clk 0:09:52.7]} 2. Nf3 {[%clk 0:09:53.7]}
2... Nc6 {[%clk 0:09:53.1]} 3. d4 {[%clk 0:09:54.1]} 3... cxd4 {[%clk 0:09:54]}
4. Nxd4 {[%clk 0:09:56]} 4... e5 {[%clk 0:09:55.2]} 5. Nb5 {[%clk 0:09:55.5]}
5... d6 {[%clk 0:09:55.8]} 6. c4 {[%clk 0:09:35.5]} 6... Be7 {[%clk 0:09:47.1]}
7. N1c3 {[%clk 0:09:32.9]} 7... a6 {[%clk 0:09:47]} 8. Na3 {[%clk 0:09:32.8]}
8... Be6 {[%clk 0:09:43.5]} 9. Nc2 {[%clk 0:09:04.2]} 9... Bg5 {[%clk 0:09:37]}
10. Bd3 {[%clk 0:08:03.5]} 10... Bxc1 {[%clk 0:09:33.5]} 11. Rxc1 {[%clk
0:08:02.5]} 11... Nf6 {[%clk 0:09:25]} 12. O-O {[%clk 0:07:59]} 12... O-O {[%clk
0:09:25.2]} 13. Qd2 {[%clk 0:07:14.6]} 13... Qb6 {[%clk 0:09:15.9]} 14. Nd5
{[%clk 0:06:24.7]} 14... Bxd5 {[%clk 0:08:47.3]} 15. exd5 {[%clk 0:06:24]} 15...
Nd4 {[%clk 0:08:45.1]} 16. Ne3 {[%clk 0:06:12]} 16... a5 {[%clk 0:08:32.6]} 17.
Kh1 {[%clk 0:05:59.7]} 17... Rfe8 {[%clk 0:08:26.4]} 18. Bb1 {[%clk 0:05:40.4]}
18... Rac8 {[%clk 0:08:09.7]} 19. Rce1 {[%clk 0:05:00.5]} 19... Qb4 {[%clk
0:07:53.3]} 20. Qc3 {[%clk 0:03:44.2]} 20... b5 {[%clk 0:07:47.5]} 21. a3 {[%clk
0:03:44]} 21... Qxc3 {[%clk 0:07:33.9]} 22. bxc3 {[%clk 0:03:42.3]} 22... Nb3
{[%clk 0:07:34.6]} 23. Nf5 {[%clk 0:03:27.7]} 23... Rcd8 {[%clk 0:07:27.4]} 24.
cxb5 {[%clk 0:03:24.6]} 24... g6 {[%clk 0:06:29.1]} 25. Ne3 {[%clk 0:03:21.7]}
25... Rc8 {[%clk 0:06:23.1]} 26. c4 {[%clk 0:02:43.3]} 26... Nd2 {[%clk
0:06:21.7]} 27. Bd3 {[%clk 0:01:29.9]} 27... Nxf1 {[%clk 0:06:20.9]} 28. Rxf1
{[%clk 0:01:31.8]} 28... Nd7 {[%clk 0:06:19.9]} 29. g4 {[%clk 0:01:30.3]} 29...
Nc5 {[%clk 0:06:12.6]} 30. Bc2 {[%clk 0:01:27.6]} 30... f6 {[%clk 0:06:08.2]}
31. Kg2 {[%clk 0:01:27.8]} 31... Kg7 {[%clk 0:06:07.5]} 32. h4 {[%clk
0:01:25.5]} 32... Rf8 {[%clk 0:06:04.2]} 33. Rh1 {[%clk 0:01:22.1]} 33... Rce8
{[%clk 0:05:57.9]} 34. f3 {[%clk 0:01:15.7]} 34... e4 {[%clk 0:05:56.4]} 35. f4
{[%clk 0:01:16.1]} 35... f5 {[%clk 0:05:56.5]} 36. g5 {[%clk 0:01:10.9]} 36...
h6 {[%clk 0:05:55.5]} 37. gxh6+ {[%clk 0:00:36.6]} 37... Kxh6 {[%clk 0:05:53.2]}
38. Kg3 {[%clk 0:00:38.3]} 38... Kg7 {[%clk 0:05:51.9]} 39. Rb1 {[%clk
0:00:37.1]} 39... Rb8 {[%clk 0:05:49.4]} 40. Rh1 {[%clk 0:00:35.6]} 40... Rh8
{[%clk 0:05:44.7]} 41. Bd1 {[%clk 0:00:32.5]} 41... Kf6 {[%clk 0:05:44.8]} 42.
Rg1 {[%clk 0:00:26.7]} 42... Rh7 {[%clk 0:05:40.1]} 43. Be2 {[%clk 0:00:25.6]}
43... Rbh8 {[%clk 0:05:33.4]} 44. Ng2 {[%clk 0:00:24.2]} 44... Ke7 {[%clk
0:05:30.1]} 45. Rh1 {[%clk 0:00:23.8]} 45... Kd7 {[%clk 0:05:28.1]} 46. Ne3
{[%clk 0:00:24.6]} 46... Kc7 {[%clk 0:05:19]} 47. Rh2 {[%clk 0:00:25.3]} 47...
Kb6 {[%clk 0:05:13.4]} 48. Rh3 {[%clk 0:00:16.5]} 48... Nb3 {[%clk 0:05:12.3]}
49. h5 {[%clk 0:00:15.7]} 49... Nd4 {[%clk 0:05:02.1]} 50. Bd1 {[%clk
0:00:12.8]} 50... gxh5 {[%clk 0:05:02.8]} 51. Kf2 {[%clk 0:00:12.3]} 51... h4
{[%clk 0:05:02.4]} 52. Ke1 {[%clk 0:00:10.8]} 52... Rg7 {[%clk 0:05:02.3]} 53.
Kd2 {[%clk 0:00:11.6]} 53... Rg3 {[%clk 0:05:02.1]} 54. Rh2 {[%clk 0:00:08.9]}
54... h3 {[%clk 0:04:57.7]} 55. Be2 {[%clk 0:00:07.6]} 55... Rhg8 {[%clk
0:04:55.9]} 56. Ke1 {[%clk 0:00:04.5]} 56... Rxe3 {[%clk 0:04:56.3]} 0-1